[Event "Titled Tuesday Blitz March 29 Late 2022"]
[White "Rudykh, Stepan"]
[Black "Vine, Elzbieta"]
[WhiteFideId "4180321"]
[BlackFideId "1119320"]
[WhiteElo "2206"]
[BlackElo "1834"]
[Result "1-0"]
[Round "06"]
[TimeControl "180+1"]
[Date "2022.03.30"]
[WhiteClock "0:00:25"]
[BlackClock "0:00:01"]

1. e4 {[%clk 0:03:00]}  c5 {[%clk 0:02:49]} 2. Nf3 {[%clk 0:03:01]}  d6 {[%clk 0:02:46]} 3. d4 {[%clk 0:03:01]}  cxd4 {[%clk 0:02:45]} 4. Nxd4 {[%clk 0:03:02]}  Nf6 {[%clk 0:02:45]} 5. Nc3 {[%clk 0:03:03]}  a6 {[%clk 0:02:44]} 6. Be3 {[%clk 0:03:04]}  e6 {[%clk 0:02:41]} 7. f3 {[%clk 0:03:01]}  Be7 {[%clk 0:02:40]} 8. Qd2 {[%clk 0:03:01]}  b5 {[%clk 0:02:36]} 9. g4 {[%clk 0:03:00]}  Bb7 {[%clk 0:02:29]} 10. g5 {[%clk 0:02:59]}  Nfd7 {[%clk 0:02:27]} 11. h4 {[%clk 0:02:55]}  Ne5 {[%clk 0:02:22]} 12. O-O-O {[%clk 0:02:38]}  Nbc6 {[%clk 0:02:21]} 13. f4 {[%clk 0:02:28]}  Nc4 {[%clk 0:02:08]} 14. Bxc4 {[%clk 0:02:28]}  bxc4 {[%clk 0:02:08]} 15. f5 {[%clk 0:02:22]}  Nxd4 {[%clk 0:01:58]} 16. Qxd4 {[%clk 0:02:15]}  e5 {[%clk 0:01:56]} 17. Qxc4 {[%clk 0:02:09]}  Rc8 {[%clk 0:01:46]} 18. Qb3 {[%clk 0:02:05]}  Qc7 {[%clk 0:01:36]} 19. g6 {[%clk 0:01:45]}  hxg6 {[%clk 0:01:34]} 20. fxg6 {[%clk 0:01:46]}  fxg6 {[%clk 0:01:33]} 21. Bg5 {[%clk 0:01:28]}  Bxg5+ {[%clk 0:01:07]} 22. hxg5 {[%clk 0:01:29]}  Rh5 {[%clk 0:01:05]} 23. Qg8+ {[%clk 0:01:19]}  Kd7 {[%clk 0:01:01]} 24. Qxg7+ {[%clk 0:01:09]}  Kc6 {[%clk 0:01:01]} 25. Qxg6 {[%clk 0:01:07]}  Rxh1 {[%clk 0:00:58]} 26. Rxh1 {[%clk 0:01:08]}  Kb6 {[%clk 0:00:54]} 27. Rh6 {[%clk 0:01:00]}  Rd8 {[%clk 0:00:49]} 28. Qe6 {[%clk 0:00:49]}  Ka7 {[%clk 0:00:32]} 29. Nd5 {[%clk 0:00:34]}  Bxd5 {[%clk 0:00:28]} 30. Qxd5 {[%clk 0:00:33]}  Rc8 {[%clk 0:00:26]} 31. c3 {[%clk 0:00:34]}  Qb6 {[%clk 0:00:21]} 32. Rh7+ {[%clk 0:00:31]}  Kb8 {[%clk 0:00:18]} 33. Qb3 {[%clk 0:00:31]}  Qxb3 {[%clk 0:00:14]} 34. axb3 {[%clk 0:00:32]}  Rg8 {[%clk 0:00:14]} 35. Rh5 {[%clk 0:00:30]}  Kc7 {[%clk 0:00:13]} 36. Kd2 {[%clk 0:00:30]}  Kd7 {[%clk 0:00:13]} 37. Ke3 {[%clk 0:00:30]}  Ke6 {[%clk 0:00:12]} 38. Kf3 {[%clk 0:00:30]}  Kf7 {[%clk 0:00:11]} 39. Kg4 {[%clk 0:00:30]}  a5 {[%clk 0:00:08]} 40. Rh7+ {[%clk 0:00:29]}  Ke8 {[%clk 0:00:05]} 41. Ra7 {[%clk 0:00:27]}  Rg6 {[%clk 0:00:03]} 42. Rxa5 {[%clk 0:00:26]}  Ke7 {[%clk 0:00:01]} 43. Ra7+ {[%clk 0:00:26]}  Ke6 {[%clk 0:00:01]} 44. Rh7 {[%clk 0:00:25]} 1-0


[Site "https://www.chess.com"]

[Event "Titled Tuesday Blitz March 29 Late 2022"]
[White "Samarth, J Rao"]
[Black "Meduri, Aakaash"]
[WhiteFideId "46652370"]
[BlackFideId "2032252"]
[WhiteElo "1514"]
[BlackElo "2096"]
[Result "0-1"]
[Round "06"]
[TimeControl "180+1"]
[Date "2022.03.30"]
[WhiteClock "0:00:05"]
[BlackClock "0:00:09"]

1. c4 {[%clk 0:03:00]}  c5 {[%clk 0:02:57]} 2. e3 {[%clk 0:02:07]}  g6 {[%clk 0:02:55]} 3. d4 {[%clk 0:02:06]}  cxd4 {[%clk 0:02:56]} 4. exd4 {[%clk 0:02:06]}  Bg7 {[%clk 0:02:56]} 5. Nf3 {[%clk 0:02:05]}  d6 {[%clk 0:02:57]} 6. Nc3 {[%clk 0:02:05]}  Nf6 {[%clk 0:02:57]} 7. Bd3 {[%clk 0:02:05]}  O-O {[%clk 0:02:58]} 8. O-O {[%clk 0:02:05]}  b6 {[%clk 0:02:58]} 9. Re1 {[%clk 0:02:04]}  Bb7 {[%clk 0:02:58]} 10. Bg5 {[%clk 0:02:03]}  Nbd7 {[%clk 0:02:57]} 11. Rc1 {[%clk 0:02:02]}  Rc8 {[%clk 0:02:57]} 12. b3 {[%clk 0:02:02]}  h6 {[%clk 0:02:56]} 13. Bf4 {[%clk 0:01:59]}  Re8 {[%clk 0:02:51]} 14. h3 {[%clk 0:01:57]}  a6 {[%clk 0:02:45]} 15. Bb1 {[%clk 0:01:54]}  Qc7 {[%clk 0:02:39]} 16. d5 {[%clk 0:01:47]}  Nf8 {[%clk 0:02:26]} 17. Qd2 {[%clk 0:01:43]}  Kh7 {[%clk 0:02:26]} 18. g4 {[%clk 0:01:40]}  Qd7 {[%clk 0:02:19]} 19. Kh2 {[%clk 0:01:38]}  Ng8 {[%clk 0:02:01]} 20. Be3 {[%clk 0:01:37]}  b5 {[%clk 0:01:57]} 21. cxb5 {[%clk 0:01:27]}  axb5 {[%clk 0:01:58]} 22. a3 {[%clk 0:01:25]}  e6 {[%clk 0:01:39]} 23. Bd4 {[%clk 0:01:11]}  e5 {[%clk 0:01:34]} 24. Be3 {[%clk 0:01:10]}  b4 {[%clk 0:01:30]} 25. axb4 {[%clk 0:01:09]}  Ba6 {[%clk 0:01:30]} 26. g5 {[%clk 0:01:04]}  h5 {[%clk 0:01:29]} 27. Qd1 {[%clk 0:00:55]}  Rb8 {[%clk 0:01:29]} 28. Nh4 {[%clk 0:00:55]}  Bc8 {[%clk 0:01:29]} 29. Qxh5+ {[%clk 0:00:54]}  Bh6 {[%clk 0:01:29]} 30. Qf3 {[%clk 0:00:47]}  Bg7 {[%clk 0:01:28]} 31. Ne4 {[%clk 0:00:45]}  Rxb4 {[%clk 0:01:22]} 32. Nf6+ {[%clk 0:00:42]}  Bxf6 {[%clk 0:01:18]} 33. gxf6 {[%clk 0:00:42]}  Rxh4 {[%clk 0:01:16]} 34. Rxc8 {[%clk 0:00:36]}  Rxc8 {[%clk 0:01:16]} 35. Bg5 {[%clk 0:00:35]}  Rxh3+ {[%clk 0:00:56]} 36. Qxh3+ {[%clk 0:00:33]}  Qxh3+ {[%clk 0:00:56]} 37. Kxh3 {[%clk 0:00:34]}  Nd7 {[%clk 0:00:57]} 38. Kg3 {[%clk 0:00:24]}  Ngxf6 {[%clk 0:00:56]} 39. Rd1 {[%clk 0:00:21]}  Rc3+ {[%clk 0:00:53]} 40. Kg2 {[%clk 0:00:21]}  Rxb3 {[%clk 0:00:53]} 41. Bd3 {[%clk 0:00:18]}  Kg7 {[%clk 0:00:52]} 42. Bc4 {[%clk 0:00:18]}  Rb2 {[%clk 0:00:50]} 43. Be3 {[%clk 0:00:14]}  Ng4 {[%clk 0:00:50]} 44. Ba7 {[%clk 0:00:14]}  Nb6 {[%clk 0:00:45]} 45. Bxb6 {[%clk 0:00:11]}  Rxb6 {[%clk 0:00:46]} 46. Kg3 {[%clk 0:00:11]}  Nf6 {[%clk 0:00:46]} 47. f3 {[%clk 0:00:11]}  Nd7 {[%clk 0:00:44]} 48. Ra1 {[%clk 0:00:10]}  Nc5 {[%clk 0:00:44]} 49. Ra7 {[%clk 0:00:10]}  Kf6 {[%clk 0:00:44]} 50. Rc7 {[%clk 0:00:09]}  Rb7 {[%clk 0:00:34]} 51. Rc6 {[%clk 0:00:09]}  Ke7 {[%clk 0:00:35]} 52. Rc8 {[%clk 0:00:06]}  f5 {[%clk 0:00:32]} 53. Rg8 {[%clk 0:00:03]}  Kf6 {[%clk 0:00:30]} 54. Rd8 {[%clk 0:00:03]}  Rd7 {[%clk 0:00:30]} 55. Rc8 {[%clk 0:00:03]}  e4 {[%clk 0:00:21]} 56. f4 {[%clk 0:00:02]}  g5 {[%clk 0:00:15]} 57. fxg5+ {[%clk 0:00:02]}  Kxg5 {[%clk 0:00:15]} 58. Rg8+ {[%clk 0:00:03]}  Kf6 {[%clk 0:00:13]} 59. Kf4 {[%clk 0:00:04]}  e3 {[%clk 0:00:07]} 60. Re8 {[%clk 0:00:04]}  Re7 {[%clk 0:00:06]} 61. Rxe7 {[%clk 0:00:04]}  Kxe7 {[%clk 0:00:06]} 62. Kxe3 {[%clk 0:00:05]}  Kf6 {[%clk 0:00:06]} 63. Kf4 {[%clk 0:00:05]}  Nd7 {[%clk 0:00:06]} 64. Bd3 {[%clk 0:00:05]}  Ne5 {[%clk 0:00:07]} 65. Bxf5 {[%clk 0:00:05]}  Nc4 {[%clk 0:00:07]} 66. Be6 {[%clk 0:00:05]}  Nb6 {[%clk 0:00:05]} 67. Ke4 {[%clk 0:00:04]}  Nc4 {[%clk 0:00:05]} 68. Kd4 {[%clk 0:00:04]}  Ne5 {[%clk 0:00:05]} 69. Bc8 {[%clk 0:00:04]}  Kg5 {[%clk 0:00:05]} 70. Ke4 {[%clk 0:00:03]}  Nc4 {[%clk 0:00:04]} 71. Kd4 {[%clk 0:00:03]}  Nd2 {[%clk 0:00:03]} 72. Bh3 {[%clk 0:00:03]}  Kf4 {[%clk 0:00:03]} 73. Bd7 {[%clk 0:00:02]}  Nf3+ {[%clk 0:00:03]} 74. Kc4 {[%clk 0:00:02]}  Ne5+ {[%clk 0:00:04]} 75. Kb5 {[%clk 0:00:03]}  Nxd7 {[%clk 0:00:04]} 76. Kc6 {[%clk 0:00:03]}  Ke5 {[%clk 0:00:05]} 77. Kxd7 {[%clk 0:00:02]}  Kxd5 {[%clk 0:00:06]} 78. Ke7 {[%clk 0:00:03]}  Ke5 {[%clk 0:00:06]} 79. Kf7 {[%clk 0:00:04]}  d5 {[%clk 0:00:07]} 80. Kg6 {[%clk 0:00:05]}  d4 {[%clk 0:00:08]} 81. Kg7 {[%clk 0:00:05]}  d3 {[%clk 0:00:09]} 0-1


[Site "https://www.chess.com"]

[Event "Titled Tuesday Blitz March 29 Late 2022"]
[White "Sapunov, Evgeny"]
[Black "Sliwicki, Damian"]
[WhiteFideId "4126661"]
[BlackFideId "1127128"]
[WhiteElo "2470"]
[BlackElo "2067"]
[Result "1-0"]
[Round "06"]
[TimeControl "180+1"]
[Date "2022.03.30"]
[WhiteClock "0:01:27"]
[BlackClock "0:00:01"]

1. c4 {[%clk 0:02:58]}  g6 {[%clk 0:02:54]} 2. Nf3 {[%clk 0:02:57]}  c5 {[%clk 0:02:44]} 3. d4 {[%clk 0:02:56]}  cxd4 {[%clk 0:02:35]} 4. Nxd4 {[%clk 0:02:56]}  Nc6 {[%clk 0:02:34]} 5. Nc2 {[%clk 0:02:56]}  Nf6 {[%clk 0:02:32]} 6. Nc3 {[%clk 0:02:55]}  Bg7 {[%clk 0:02:31]} 7. e4 {[%clk 0:02:56]}  d6 {[%clk 0:02:31]} 8. Be2 {[%clk 0:02:56]}  O-O {[%clk 0:02:32]} 9. O-O {[%clk 0:02:56]}  Qa5 {[%clk 0:02:30]} 10. Bd2 {[%clk 0:02:54]}  Be6 {[%clk 0:02:16]} 11. Nd5 {[%clk 0:02:34]}  Qd8 {[%clk 0:02:06]} 12. f3 {[%clk 0:02:34]}  Ne5 {[%clk 0:01:57]} 13. b3 {[%clk 0:02:27]}  Rc8 {[%clk 0:01:54]} 14. Be3 {[%clk 0:02:22]}  b6 {[%clk 0:01:51]} 15. Qd2 {[%clk 0:02:21]}  Nxd5 {[%clk 0:01:38]} 16. cxd5 {[%clk 0:02:20]}  Bd7 {[%clk 0:01:37]} 17. Nd4 {[%clk 0:02:18]}  f5 {[%clk 0:01:26]} 18. exf5 {[%clk 0:02:16]}  Bxf5 {[%clk 0:01:27]} 19. Rac1 {[%clk 0:02:09]}  Rxc1 {[%clk 0:01:10]} 20. Rxc1 {[%clk 0:02:08]}  Kh8 {[%clk 0:01:06]} 21. b4 {[%clk 0:02:02]}  Bd7 {[%clk 0:01:06]} 22. Nc6 {[%clk 0:01:58]}  Nxc6 {[%clk 0:00:46]} 23. dxc6 {[%clk 0:01:58]}  Bc8 {[%clk 0:00:47]} 24. a4 {[%clk 0:01:53]}  d5 {[%clk 0:00:45]} 25. Rd1 {[%clk 0:01:49]}  e6 {[%clk 0:00:43]} 26. b5 {[%clk 0:01:49]}  Qf6 {[%clk 0:00:37]} 27. f4 {[%clk 0:01:48]}  e5 {[%clk 0:00:30]} 28. fxe5 {[%clk 0:01:48]}  Qxe5 {[%clk 0:00:31]} 29. Bd4 {[%clk 0:01:44]}  Qe7 {[%clk 0:00:16]} 30. Bxg7+ {[%clk 0:01:42]}  Kxg7 {[%clk 0:00:16]} 31. Qd4+ {[%clk 0:01:41]}  Kh6 {[%clk 0:00:17]} 32. Bf3 {[%clk 0:01:41]}  Rxf3 {[%clk 0:00:08]} 33. gxf3 {[%clk 0:01:39]}  Bh3 {[%clk 0:00:07]} 34. Kf2 {[%clk 0:01:30]}  Qa3 {[%clk 0:00:04]} 35. Qe3+ {[%clk 0:01:29]}  Qxe3+ {[%clk 0:00:03]} 36. Kxe3 {[%clk 0:01:30]}  Be6 {[%clk 0:00:02]} 37. Kf4 {[%clk 0:01:29]}  Kg7 {[%clk 0:00:01]} 38. Ke5 {[%clk 0:01:29]}  Bf5 {[%clk 0:00:01]} 39. Rxd5 {[%clk 0:01:29]}  h5 {[%clk 0:00:02]} 40. c7 {[%clk 0:01:27]}  Kf7 {[%clk 0:00:02]} 41. Rd8 {[%clk 0:01:27]}  Ke7 {[%clk 0:00:01]} 1-0


[Site "https://www.chess.com"]

[Event "Titled Tuesday Blitz March 29 Late 2022"]
[White "Sarana, Alexey"]
[Black "Paravyan, David"]
[WhiteFideId "24133795"]
[BlackFideId "4194985"]
[WhiteElo "2666"]
[BlackElo "2569"]
[Result "0-1"]
[Round "06"]
[TimeControl "180+1"]
[Date "2022.03.29"]
[WhiteClock "0:00:06"]
[BlackClock "0:00:21"]

1. d4 {[%clk 0:03:00]}  Nf6 {[%clk 0:03:00]} 2. c4 {[%clk 0:03:01]}  g6 {[%clk 0:03:00]} 3. Nc3 {[%clk 0:03:02]}  d5 {[%clk 0:03:01]} 4. cxd5 {[%clk 0:03:03]}  Nxd5 {[%clk 0:03:02]} 5. e4 {[%clk 0:03:04]}  Nxc3 {[%clk 0:03:02]} 6. bxc3 {[%clk 0:03:04]}  Bg7 {[%clk 0:03:03]} 7. Bc4 {[%clk 0:03:05]}  c5 {[%clk 0:03:03]} 8. Ne2 {[%clk 0:03:06]}  O-O {[%clk 0:03:01]} 9. Be3 {[%clk 0:03:06]}  Nc6 {[%clk 0:03:01]} 10. Rc1 {[%clk 0:03:06]}  cxd4 {[%clk 0:03:00]} 11. cxd4 {[%clk 0:03:07]}  Qa5+ {[%clk 0:02:59]} 12. Rc3 {[%clk 0:03:07]}  Bg4 {[%clk 0:02:59]} 13. f3 {[%clk 0:03:07]}  Be6 {[%clk 0:02:58]} 14. Bxe6 {[%clk 0:03:01]}  fxe6 {[%clk 0:02:59]} 15. O-O {[%clk 0:02:32]}  Qxa2 {[%clk 0:02:57]} 16. e5 {[%clk 0:02:22]}  a5 {[%clk 0:02:44]} 17. Qd3 {[%clk 0:02:11]}  Nb4 {[%clk 0:02:43]} 18. Qb5 {[%clk 0:02:00]}  Nd5 {[%clk 0:02:42]} 19. Rb3 {[%clk 0:01:57]}  a4 {[%clk 0:02:41]} 20. Rb2 {[%clk 0:01:52]}  Qa3 {[%clk 0:02:42]} 21. Bd2 {[%clk 0:01:45]}  Rfc8 {[%clk 0:02:16]} 22. Rfb1 {[%clk 0:01:27]}  Kf7 {[%clk 0:01:50]} 23. Kf1 {[%clk 0:00:47]}  Rd8 {[%clk 0:00:56]} 24. Rc2 {[%clk 0:00:28]}  Rac8 {[%clk 0:00:46]} 25. Bc1 {[%clk 0:00:25]}  Ne3+ {[%clk 0:00:35]} 26. Bxe3 {[%clk 0:00:25]}  Rxc2 {[%clk 0:00:31]} 27. Bg5 {[%clk 0:00:17]}  h6 {[%clk 0:00:24]} 28. Qb6 {[%clk 0:00:12]}  Qd3 {[%clk 0:00:22]} 29. Qb5 {[%clk 0:00:05]}  Qxb5 {[%clk 0:00:21]} 30. Rxb5 {[%clk 0:00:06]}  hxg5 {[%clk 0:00:21]} 0-1


[Site "https://www.chess.com"]

[Event "Titled Tuesday Blitz March 29 Late 2022"]
[White "Shimanov, Aleksandr"]
[Black "Harshavardhan G B"]
[WhiteFideId "4198603"]
[BlackFideId "25059009"]
[WhiteElo "2636"]
[BlackElo "1831"]
[Result "1-0"]
[Round "06"]
[TimeControl "180+1"]
[Date "2022.03.29"]
[WhiteClock "0:02:36"]
[BlackClock "0:01:47"]

1. d4 {[%clk 0:03:00]}  Nf6 {[%clk 0:02:54]} 2. Nc3 {[%clk 0:03:00]}  d5 {[%clk 0:02:53]} 3. Bf4 {[%clk 0:03:00]}  Nbd7 {[%clk 0:02:53]} 4. Nb5 {[%clk 0:02:57]}  e5 {[%clk 0:02:50]} 5. dxe5 {[%clk 0:02:57]}  Nh5 {[%clk 0:02:49]} 6. e3 {[%clk 0:02:56]}  Nxf4 {[%clk 0:02:47]} 7. exf4 {[%clk 0:02:56]}  a6 {[%clk 0:02:46]} 8. Nc3 {[%clk 0:02:55]}  c6 {[%clk 0:02:45]} 9. Nf3 {[%clk 0:02:55]}  Qb6 {[%clk 0:02:44]} 10. Rb1 {[%clk 0:02:54]}  Bb4 {[%clk 0:02:43]} 11. a3 {[%clk 0:02:49]}  Bxc3+ {[%clk 0:02:41]} 12. bxc3 {[%clk 0:02:50]}  Qa5 {[%clk 0:02:42]} 13. Qd2 {[%clk 0:02:48]}  Nc5 {[%clk 0:02:41]} 14. Bd3 {[%clk 0:02:48]}  Bg4 {[%clk 0:02:32]} 15. Nd4 {[%clk 0:02:47]}  Qxa3 {[%clk 0:02:17]} 16. O-O {[%clk 0:02:45]}  Qa5 {[%clk 0:02:14]} 17. f5 {[%clk 0:02:42]}  O-O {[%clk 0:01:51]} 18. Qg5 {[%clk 0:02:40]}  Qxc3 {[%clk 0:01:47]} 19. f6 {[%clk 0:02:36]} 1-0


[Site "https://www.chess.com"]

[Event "Titled Tuesday Blitz March 29 Late 2022"]
[White "Srinath, Rao S.V."]
[Black "Melikhov, Evgeny V."]
[WhiteFideId "5028876"]
[BlackFideId "4122046"]
[WhiteElo "2181"]
[BlackElo "1945"]
[Result "1-0"]
[Round "06"]
[TimeControl "180+1"]
[Date "2022.03.30"]
[WhiteClock "0:00:22"]
[BlackClock "0:00:11"]

1. e4 {[%clk 0:03:00]}  e5 {[%clk 0:02:54]} 2. Nf3 {[%clk 0:02:59]}  Nc6 {[%clk 0:02:50]} 3. Bb5 {[%clk 0:03:00]}  a6 {[%clk 0:02:50]} 4. Ba4 {[%clk 0:03:00]}  Nf6 {[%clk 0:02:49]} 5. O-O {[%clk 0:03:00]}  Nxe4 {[%clk 0:02:48]} 6. Re1 {[%clk 0:02:44]}  Nc5 {[%clk 0:02:46]} 7. Bxc6 {[%clk 0:02:23]}  dxc6 {[%clk 0:02:44]} 8. Nxe5 {[%clk 0:02:14]}  Be7 {[%clk 0:02:43]} 9. d4 {[%clk 0:02:14]}  Ne6 {[%clk 0:02:42]} 10. c3 {[%clk 0:02:14]}  O-O {[%clk 0:02:41]} 11. Be3 {[%clk 0:02:10]}  f6 {[%clk 0:02:35]} 12. Nd3 {[%clk 0:02:05]}  Rf7 {[%clk 0:02:23]} 13. Nd2 {[%clk 0:02:05]}  Bf8 {[%clk 0:02:15]} 14. Nf3 {[%clk 0:02:00]}  Qd5 {[%clk 0:01:50]} 15. Qc2 {[%clk 0:01:54]}  Qh5 {[%clk 0:01:44]} 16. Rad1 {[%clk 0:01:50]}  Ng5 {[%clk 0:01:44]} 17. Nxg5 {[%clk 0:01:49]}  fxg5 {[%clk 0:01:44]} 18. Ne5 {[%clk 0:01:49]}  Re7 {[%clk 0:01:31]} 19. Bc1 {[%clk 0:01:35]}  Be6 {[%clk 0:01:28]} 20. Rd3 {[%clk 0:01:33]}  Rae8 {[%clk 0:01:24]} 21. Rg3 {[%clk 0:01:32]}  g4 {[%clk 0:01:19]} 22. b3 {[%clk 0:01:19]}  Bf5 {[%clk 0:01:11]} 23. Qe2 {[%clk 0:01:15]}  Qh4 {[%clk 0:00:48]} 24. Ba3 {[%clk 0:01:06]}  Re6 {[%clk 0:00:46]} 25. Bxf8 {[%clk 0:01:07]}  Rxf8 {[%clk 0:00:38]} 26. Qc4 {[%clk 0:01:02]}  Kh8 {[%clk 0:00:32]} 27. Nf7+ {[%clk 0:00:57]}  Rxf7 {[%clk 0:00:31]} 28. Rxe6 {[%clk 0:00:58]}  Bxe6 {[%clk 0:00:30]} 29. Qxe6 {[%clk 0:00:59]}  Qe7 {[%clk 0:00:28]} 30. Qxe7 {[%clk 0:00:46]}  Rxe7 {[%clk 0:00:28]} 31. Re3 {[%clk 0:00:47]}  Rxe3 {[%clk 0:00:24]} 32. fxe3 {[%clk 0:00:48]}  Kg8 {[%clk 0:00:23]} 33. e4 {[%clk 0:00:47]}  Kf7 {[%clk 0:00:23]} 34. Kf2 {[%clk 0:00:48]}  Kf6 {[%clk 0:00:23]} 35. Ke3 {[%clk 0:00:46]}  g5 {[%clk 0:00:22]} 36. c4 {[%clk 0:00:44]}  Ke6 {[%clk 0:00:19]} 37. b4 {[%clk 0:00:41]}  h5 {[%clk 0:00:18]} 38. a4 {[%clk 0:00:40]}  b6 {[%clk 0:00:17]} 39. a5 {[%clk 0:00:37]}  b5 {[%clk 0:00:16]} 40. d5+ {[%clk 0:00:34]}  Ke5 {[%clk 0:00:15]} 41. dxc6 {[%clk 0:00:31]}  bxc4 {[%clk 0:00:14]} 42. b5 {[%clk 0:00:31]}  Kd6 {[%clk 0:00:12]} 43. bxa6 {[%clk 0:00:25]}  Kxc6 {[%clk 0:00:11]} 44. Kd4 {[%clk 0:00:22]} 1-0


[Site "https://www.chess.com"]

[Event "Titled Tuesday Blitz March 29 Late 2022"]
[White "Tarigan, Gilbert Elroy"]
[Black "Bibasa, Bob"]
[WhiteFideId "7108133"]
[BlackFideId "10000240"]
[WhiteElo "1908"]
[BlackElo "2056"]
[Result "1-0"]
[Round "06"]
[TimeControl "180+1"]
[Date "2022.03.30"]
[WhiteClock "0:00:11"]
[BlackClock "0:00:13"]

1. b3 {[%clk 0:03:00]}  d5 {[%clk 0:02:58]} 2. Bb2 {[%clk 0:03:01]}  Bg4 {[%clk 0:02:59]} 3. h3 {[%clk 0:03:01]}  Bh5 {[%clk 0:02:59]} 4. Nf3 {[%clk 0:03:01]}  Bxf3 {[%clk 0:02:59]} 5. exf3 {[%clk 0:03:02]}  e6 {[%clk 0:02:57]} 6. g3 {[%clk 0:03:01]}  Nf6 {[%clk 0:02:57]} 7. Bg2 {[%clk 0:03:00]}  Bc5 {[%clk 0:02:56]} 8. d4 {[%clk 0:02:56]}  Bd6 {[%clk 0:02:56]} 9. f4 {[%clk 0:02:56]}  c6 {[%clk 0:02:55]} 10. Nd2 {[%clk 0:02:56]}  Nbd7 {[%clk 0:02:55]} 11. O-O {[%clk 0:02:56]}  Qc7 {[%clk 0:02:54]} 12. c4 {[%clk 0:02:53]}  h6 {[%clk 0:02:50]} 13. Nf3 {[%clk 0:02:53]}  O-O {[%clk 0:02:47]} 14. Re1 {[%clk 0:02:52]}  Ne4 {[%clk 0:02:46]} 15. Ne5 {[%clk 0:02:50]}  Ndf6 {[%clk 0:02:41]} 16. c5 {[%clk 0:02:47]}  Be7 {[%clk 0:02:40]} 17. Rc1 {[%clk 0:02:43]}  Rfd8 {[%clk 0:02:19]} 18. Re2 {[%clk 0:02:30]}  g6 {[%clk 0:02:15]} 19. Qe1 {[%clk 0:02:24]}  Nh7 {[%clk 0:01:53]} 20. Bxe4 {[%clk 0:02:19]}  dxe4 {[%clk 0:01:53]} 21. Rxe4 {[%clk 0:02:20]}  Nf6 {[%clk 0:01:54]} 22. Re2 {[%clk 0:02:17]}  Nd5 {[%clk 0:01:54]} 23. Qd2 {[%clk 0:02:10]}  Bf6 {[%clk 0:01:54]} 24. h4 {[%clk 0:02:00]}  h5 {[%clk 0:01:51]} 25. Rce1 {[%clk 0:01:57]}  Re8 {[%clk 0:01:43]} 26. Nc4 {[%clk 0:01:42]}  b6 {[%clk 0:01:28]} 27. f5 {[%clk 0:01:33]}  gxf5 {[%clk 0:01:13]} 28. Qh6 {[%clk 0:01:33]}  Bg7 {[%clk 0:01:09]} 29. Qxh5 {[%clk 0:01:33]}  bxc5 {[%clk 0:01:08]} 30. dxc5 {[%clk 0:01:31]}  Bxb2 {[%clk 0:00:50]} 31. Rxb2 {[%clk 0:01:31]}  Qe7 {[%clk 0:00:47]} 32. Ne5 {[%clk 0:01:26]}  Qf6 {[%clk 0:00:43]} 33. Rc2 {[%clk 0:01:20]}  Rac8 {[%clk 0:00:40]} 34. Rc4 {[%clk 0:01:19]}  Red8 {[%clk 0:00:32]} 35. g4 {[%clk 0:01:00]}  f4 {[%clk 0:00:23]} 36. g5 {[%clk 0:00:54]}  Qf5 {[%clk 0:00:23]} 37. Qg4 {[%clk 0:00:50]}  Qxg4+ {[%clk 0:00:20]} 38. Nxg4 {[%clk 0:00:51]}  Kg7 {[%clk 0:00:19]} 39. Kg2 {[%clk 0:00:48]}  Rh8 {[%clk 0:00:17]} 40. Rh1 {[%clk 0:00:48]}  Rh5 {[%clk 0:00:17]} 41. Ra4 {[%clk 0:00:30]}  Rc7 {[%clk 0:00:17]} 42. Ne5 {[%clk 0:00:25]}  f6 {[%clk 0:00:16]} 43. Nf3 {[%clk 0:00:25]}  fxg5 {[%clk 0:00:15]} 44. hxg5 {[%clk 0:00:25]}  Rxh1 {[%clk 0:00:14]} 45. Kxh1 {[%clk 0:00:26]}  Kg6 {[%clk 0:00:14]} 46. Re4 {[%clk 0:00:21]}  Kf5 {[%clk 0:00:14]} 47. Re5+ {[%clk 0:00:19]}  Kg4 {[%clk 0:00:15]} 48. Kg2 {[%clk 0:00:19]}  Re7 {[%clk 0:00:12]} 49. g6 {[%clk 0:00:13]}  Ne3+ {[%clk 0:00:08]} 50. fxe3 {[%clk 0:00:13]}  fxe3 {[%clk 0:00:09]} 51. Rxe3 {[%clk 0:00:12]}  Kf4 {[%clk 0:00:09]} 52. Rd3 {[%clk 0:00:07]}  Rg7 {[%clk 0:00:09]} 53. Rd4+ {[%clk 0:00:07]}  Kf5 {[%clk 0:00:09]} 54. Nh4+ {[%clk 0:00:07]}  Ke5 {[%clk 0:00:09]} 55. Rg4 {[%clk 0:00:07]}  Kd5 {[%clk 0:00:09]} 56. Kg3 {[%clk 0:00:08]}  Kxc5 {[%clk 0:00:10]} 57. Kf4 {[%clk 0:00:08]}  Kd5 {[%clk 0:00:10]} 58. Kg5 {[%clk 0:00:09]}  Ke5 {[%clk 0:00:11]} 59. Kh6 {[%clk 0:00:08]}  Rg8 {[%clk 0:00:11]} 60. g7 {[%clk 0:00:09]}  Kf6 {[%clk 0:00:09]} 61. Kh7 {[%clk 0:00:09]}  Rxg7+ {[%clk 0:00:09]} 62. Rxg7 {[%clk 0:00:09]}  e5 {[%clk 0:00:10]} 63. Rxa7 {[%clk 0:00:09]}  e4 {[%clk 0:00:11]} 64. Ng2 {[%clk 0:00:09]}  Kf5 {[%clk 0:00:11]} 65. Rf7+ {[%clk 0:00:08]}  Kg4 {[%clk 0:00:11]} 66. Rf4+ {[%clk 0:00:08]}  Kg3 {[%clk 0:00:12]} 67. Rxe4 {[%clk 0:00:09]}  Kxg2 {[%clk 0:00:13]} 68. Rc4 {[%clk 0:00:10]}  Kf3 {[%clk 0:00:13]} 69. Rxc6 {[%clk 0:00:11]} 1-0


[Site "https://www.chess.com"]

[Event "Titled Tuesday Blitz March 29 Late 2022"]
[White "Toncheva, Nadya"]
[Black "Reprintsev, Alexander"]
[WhiteFideId "2924056"]
[BlackFideId "14100541"]
[WhiteElo "1884"]
[BlackElo "2108"]
[Result "0-1"]
[Round "06"]
[TimeControl "180+1"]
[Date "2022.03.30"]
[WhiteClock "0:00:06"]
[BlackClock "0:00:17"]

1. e4 {[%clk 0:03:00]}  d5 {[%clk 0:02:42]} 2. exd5 {[%clk 0:02:48]}  Qxd5 {[%clk 0:02:32]} 3. Nf3 {[%clk 0:02:48]}  Bg4 {[%clk 0:02:31]} 4. Be2 {[%clk 0:02:46]}  Nc6 {[%clk 0:02:31]} 5. O-O {[%clk 0:02:42]}  O-O-O {[%clk 0:02:29]} 6. Nc3 {[%clk 0:02:40]}  Qd7 {[%clk 0:02:29]} 7. d3 {[%clk 0:02:32]}  e5 {[%clk 0:02:28]} 8. Be3 {[%clk 0:02:23]}  f5 {[%clk 0:02:26]} 9. h3 {[%clk 0:02:14]}  h5 {[%clk 0:02:26]} 10. a4 {[%clk 0:01:46]}  a6 {[%clk 0:02:24]} 11. Re1 {[%clk 0:01:40]}  Nf6 {[%clk 0:02:24]} 12. Ng5 {[%clk 0:01:16]}  Bxe2 {[%clk 0:02:15]} 13. Rxe2 {[%clk 0:01:03]}  Bb4 {[%clk 0:02:02]} 14. Na2 {[%clk 0:00:51]}  Bd6 {[%clk 0:02:01]} 15. b4 {[%clk 0:00:46]}  Nxb4 {[%clk 0:01:54]} 16. Nxb4 {[%clk 0:00:44]}  Bxb4 {[%clk 0:01:55]} 17. Rb1 {[%clk 0:00:40]}  Bd6 {[%clk 0:01:40]} 18. Qc1 {[%clk 0:00:36]}  Nd5 {[%clk 0:01:00]} 19. Qb2 {[%clk 0:00:31]}  c6 {[%clk 0:00:59]} 20. Ne6 {[%clk 0:00:20]}  Rde8 {[%clk 0:00:58]} 21. Nc5 {[%clk 0:00:19]}  Bxc5 {[%clk 0:00:58]} 22. Bxc5 {[%clk 0:00:20]}  g5 {[%clk 0:00:54]} 23. Rxe5 {[%clk 0:00:20]}  Rxe5 {[%clk 0:00:52]} 24. Qxe5 {[%clk 0:00:21]}  Re8 {[%clk 0:00:51]} 25. Qb2 {[%clk 0:00:21]}  g4 {[%clk 0:00:51]} 26. c4 {[%clk 0:00:21]}  Nf4 {[%clk 0:00:50]} 27. Qb6 {[%clk 0:00:14]}  Nxd3 {[%clk 0:00:38]} 28. Qa7 {[%clk 0:00:12]}  Nxc5 {[%clk 0:00:28]} 29. Qxc5 {[%clk 0:00:12]}  gxh3 {[%clk 0:00:26]} 30. gxh3 {[%clk 0:00:10]}  Rg8+ {[%clk 0:00:24]} 31. Kh2 {[%clk 0:00:10]}  Qc7+ {[%clk 0:00:22]} 32. Kh1 {[%clk 0:00:09]}  Qf4 {[%clk 0:00:17]} 33. Qa3 {[%clk 0:00:06]}  Qe4+ {[%clk 0:00:17]} 0-1


[Site "https://www.chess.com"]